fUST/lending_fUST_20240914
["ID","MTS","AMOUNT","RATE_DAILY","PERIOD"]
[338154279,1726317125233,-227.53,0.000388,31]
[338154281,1726317125245,-227.53,0.000388,31]
[338154282,1726317125254,-227.53,0.000388,31]
[338154283,1726317125264,-227.53,0.000388,31]
[338154284,1726317125274,-227.53,0.000388,31]
[338154285,1726317125283,-227.53,0.000388,31]
[338154286,1726317125293,-227.53,0.000388,31]
[338154287,1726317125303,-227.53,0.000388,31]
[338154288,1726317125312,-227.53,0.000388,31]
[338154289,1726317125322,-227.53,0.000388,31]
[338154290,1726317125332,-227.53,0.000388,31]
[338154292,1726317125341,-227.53,0.000388,31]
[338154293,1726317125351,-227.53,0.000388,31]
[338154294,1726317125360,-227.53,0.000388,31]
[338154295,1726317125369,-227.53,0.000388,31]
[338154296,1726317125378,-27557.35552469,0.00039,2]
[338154298,1726317125388,-150.0,0.00039,30]
[338154299,1726317125398,-378.0,0.00039,2]
[338154300,1726317125408,-1559.81220396,0.00039,30]
[338154301,1726317125418,-263.0,0.00039,2]
[338154302,1726317125428,-263.0,0.00039,2]
[338154304,1726317125440,-1542.42,0.00039096,30]
[338154305,1726317125450,-150.566527,0.000393,2]
[338154306,1726317125459,-6002.85538239,0.00039452,30]
[338154307,1726317125468,-1621.78466681,0.00039452,30]
[338154308,1726317125477,-524.0,0.00039478,2]
[338154310,1726317125487,-150.0,0.00039478,2]
[338154311,1726317125495,-1000.0,0.00039589,120]
[338154312,1726317125505,-151.0,0.00039644,120]
[338154313,1726317125514,-2900.0,0.0003971,2]
[338154314,1726317125523,-6927.23,0.00039726,120]
[338154316,1726317125532,-4858.33367634,0.0004,2]
[338154317,1726317125542,-150.0,0.0004,30]
[338154318,1726317125551,-1017.55799472,0.0004,120]
[338154319,1726317125561,-843.42409952,0.0004,120]
[338154320,1726317125570,-30705.24485084,0.0004,120]
[338154321,1726317125579,-504.09272893,0.0004,5]
[338154323,1726317125588,-462.42815103,0.00040167,5]
[338154324,1726317125597,-150.0,0.000403,2]
[338154325,1726317125606,-1000.0,0.00040547,120]
[338154326,1726317125615,-7375.14231413,0.00040555,28]
[338154327,1726317125625,-151.0,0.00040603,120]
[338154329,1726317125634,-170.49384,0.00040808,2]
[338154330,1726317125643,-200.0,0.00041,30]
[338154331,1726317125653,-4222.01158396,0.00041,30]
[338154332,1726317125663,-150.0,0.00041096,10]
[338154334,1726317125674,-180.136722,0.00041096,2]
[338154335,1726317125683,-247.0,0.000411,21]
[338154336,1726317125692,-150.0,0.000413,2]
[338154337,1726317125702,-179.9,0.00041326,31]
[338154338,1726317125711,-1000.0,0.00041506,120]
[338154340,1726317125720,-187.983767,0.00041553,120]
[338154341,1726317125732,-6927.23,0.00041643,120]
[338154342,1726317125741,-17855.93,0.000418,14]
[338154343,1726317125750,-153.0,0.00041918,120]
[338154344,1726317125759,-153.0,0.00041918,120]
[338154346,1726317125768,-153.0,0.00041918,120]
[338154347,1726317125781,-153.0,0.00041918,120]
[338154348,1726317125792,-153.0,0.00041918,120]
[338154349,1726317125802,-153.0,0.00041918,120]
[338154351,1726317125812,-153.0,0.00041918,120]
[338154352,1726317125821,-153.0,0.00041918,120]
[338154353,1726317125831,-153.0,0.00041918,120]
[338154354,1726317125850,-153.0,0.00041918,120]
[338154355,1726317125860,-153.0,0.00041918,120]
[338154356,1726317125870,-646.0,0.00041918,120]
[338154357,1726317125880,-646.0,0.00041918,120]
[338154358,1726317125890,-646.0,0.00041918,120]
[338154359,1726317125900,-646.0,0.00041918,120]
[338154360,1726317125910,-646.0,0.00041918,120]
[338154361,1726317125921,-646.0,0.00041918,120]
[338154362,1726317125931,-646.0,0.00041918,120]
[338154363,1726317125943,-646.0,0.00041918,120]
[338154364,1726317125954,-646.0,0.00041918,120]
[338154365,1726317125965,-646.0,0.00041918,120]
[338154366,1726317125977,-646.0,0.00041918,120]
[338154367,1726317125987,-646.0,0.00041918,120]
[338154368,1726317125997,-646.0,0.00041918,120]
[338154369,1726317126008,-646.0,0.00041918,120]
[338154370,1726317126021,-646.0,0.00041918,120]
[338154371,1726317126033,-646.0,0.00041918,120]
[338154372,1726317126046,-646.0,0.00041918,120]
[338154373,1726317126057,-646.0,0.00041918,120]
[338154374,1726317126067,-646.0,0.00041918,120]
[338154375,1726317126077,-646.0,0.00041918,120]
[338154376,1726317126087,-646.0,0.00041918,120]
[338154377,1726317126100,-646.0,0.00041918,120]
[338154378,1726317126114,-646.0,0.00041918,120]
[338154379,1726317126124,-646.0,0.00041918,120]
[338154380,1726317126134,-646.0,0.00041918,120]
[338154381,1726317126146,-646.0,0.00041918,120]
[338154382,1726317126158,-646.0,0.00041918,120]
[338154383,1726317126168,-646.0,0.00041918,120]
[338154384,1726317126181,-646.0,0.00041918,120]
[338154385,1726317126193,-646.0,0.00041918,120]
[338154386,1726317126203,-646.0,0.00041918,120]
[338154387,1726317126213,-646.0,0.00041918,120]
[338154388,1726317126222,-646.0,0.00041918,120]
[338154389,1726317126232,-646.0,0.00041918,120]
[338154390,1726317126241,-646.0,0.00041918,120]
[338154391,1726317126251,-646.0,0.00041918,120]
[338154392,1726317126261,-646.0,0.00041918,120]
[338154393,1726317126270,-646.0,0.00041918,120]
[338154394,1726317126280,-646.0,0.00041918,120]
[338154395,1726317126289,-646.0,0.00041918,120]
[338154396,1726317126298,-646.0,0.00041918,120]
[338154397,1726317126308,-646.0,0.00041918,120]
[338154398,1726317126319,-646.0,0.00041918,120]
[338154399,1726317126329,-646.0,0.00041918,120]
[338154400,1726317126340,-646.0,0.00041918,120]
[338154401,1726317126351,-646.0,0.00041918,120]
[338154403,1726317126361,-646.0,0.00041918,120]
[338154404,1726317126371,-646.0,0.00041918,120]
[338154405,1726317126380,-646.0,0.00041918,120]
[338154406,1726317126390,-646.0,0.00041918,120]
[338154407,1726317126400,-646.0,0.00041918,120]
[338154409,1726317126410,-646.0,0.00041918,120]
[338154410,1726317126420,-646.0,0.00041918,120]
[338154411,1726317126430,-646.0,0.00041918,120]
[338154412,1726317126439,-646.0,0.00041918,120]
[338154414,1726317126450,-646.0,0.00041918,120]
[338154415,1726317126467,-646.0,0.00041918,120]
[338154416,1726317126476,-646.0,0.00041918,120]
[338154417,1726317126486,-646.0,0.00041918,120]
[338154418,1726317126496,-646.0,0.00041918,120]
[338154420,1726317126506,-646.0,0.00041918,120]
[338154421,1726317126516,-646.0,0.00041918,120]
[338154422,1726317126525,-646.0,0.00041918,120]
[338154423,1726317126534,-646.0,0.00041918,120]
[338154424,1726317126545,-646.0,0.00041918,120]
[338154426,1726317126555,-646.0,0.00041918,120]
[338154427,1726317126565,-646.0,0.00041918,120]
[338154428,1726317126577,-646.0,0.00041918,120]
[338154429,1726317126586,-646.0,0.00041918,120]
[338154430,1726317126596,-646.0,0.00041918,120]
[338154432,1726317126606,-646.0,0.00041918,120]
[338154433,1726317126616,-646.0,0.00041918,120]
[338154434,1726317126626,-646.0,0.00041918,120]
[338154435,1726317126635,-646.0,0.00041918,120]
[338154436,1726317126647,-646.0,0.00041918,120]
[338154438,1726317126656,-646.0,0.00041918,120]
[338154439,1726317126667,-646.0,0.00041918,120]
[338154440,1726317126678,-646.0,0.00041918,120]
[338154441,1726317126688,-646.0,0.00041918,120]
[338154443,1726317126698,-646.0,0.00041918,120]
[338154444,1726317126708,-646.0,0.00041918,120]
[338154445,1726317126719,-646.0,0.00041918,120]
[338154446,1726317126728,-646.0,0.00041918,120]
[338154447,1726317126737,-646.0,0.00041918,120]
[338154448,1726317126747,-646.0,0.00041918,120]
[338154450,1726317126757,-646.0,0.00041918,120]
[338154451,1726317126768,-646.0,0.00041918,120]
[338154452,1726317126777,-646.0,0.00041918,120]
[338154453,1726317126786,-646.0,0.00041918,120]
[338154454,1726317126797,-500.0,0.00042,5]
[338154456,1726317126807,-263.0,0.00042,2]
[338154457,1726317126816,-151.0,0.00042055,120]
[338154458,1726317126828,-2031.0798922,0.00042085,5]
[338154459,1726317126841,-179.9,0.00042092,31]
[338154461,1726317126851,-300.0,0.000421,22]
[338154462,1726317126861,-150.0,0.000423,2]
[338154463,1726317126871,-600.0,0.00042345,2]
[338154464,1726317126881,-1000.0,0.00042465,120]
[338154465,1726317126892,-522.0,0.00042478,2]
[338154467,1726317126903,-150.0,0.00042478,2]
[338154468,1726317126913,-2031.0798922,0.00042585,6]
[338154469,1726317126929,-153.0,0.00042684,2]
[338154471,1726317126942,-153.0,0.00042684,2]
[338154472,1726317126953,-153.0,0.00042684,2]
[338154473,1726317126963,-153.0,0.00042684,2]
[338154474,1726317126972,-153.0,0.00042684,2]
[338154475,1726317126984,-153.0,0.00042684,2]
[338154477,1726317126995,-153.0,0.00042684,2]
[338154478,1726317127006,-153.0,0.00042684,2]
[338154479,1726317127017,-158.834459,0.00042708,120]
[338154480,1726317127028,-600.0,0.00042786,2]
[338154482,1726317127039,-179.9,0.00042858,31]
[338154483,1726317127049,-1110.83763844,0.000429,30]
[338154484,1726317127059,-150.0,0.00043,60]
[338154485,1726317127072,-59581.94134781,0.00043,120]
[338154486,1726317127082,-5353.40118147,0.00043,120]
[338154488,1726317127092,-207.0,0.00043,90]
[338154489,1726317127102,-207.0,0.00043014,90]
[338154490,1726317127113,-2031.0798922,0.00043085,6]
[338154491,1726317127124,-300.0,0.000431,24]
[338154493,1726317127135,-600.0,0.00043227,2]
[338154494,1726317127144,-150.0,0.000433,2]
[338154495,1726317127155,-1000.0,0.00043424,120]
[338154496,1726317127165,-150.0,0.00043431,30]
[338154497,1726317127177,-6927.23,0.00043561,120]
[338154499,1726317127189,-2031.0798922,0.00043585,7]
[338154500,1726317127198,-179.9,0.00043624,31]
[338154501,1726317127210,-600.0,0.00043668,2]
[338154502,1726317127219,-150.0,0.0004376,30]
[338154503,1726317127229,-500.0,0.00043835,120]
[338154505,1726317127238,-500.0,0.00043835,120]
[338154506,1726317127248,-500.0,0.00043835,120]
[338154507,1726317127257,-500.0,0.00043835,120]
[338154508,1726317127267,-579.77,0.00043835,30]
[338154509,1726317127277,-306.69299409,0.00043835,2]
[338154511,1726317127287,-500.0,0.00043835,7]
[338154512,1726317127297,-200.0,0.00043835,120]
[338154513,1726317127306,-500.0,0.00043835,120]
[338154514,1726317127316,-500.0,0.00043835,120]
[338154515,1726317127325,-406.34,0.00043835,120]
[338154517,1726317127335,-500.0,0.00043835,120]
[338154518,1726317127344,-500.0,0.00043835,120]
[338154519,1726317127354,-500.0,0.00043835,120]
[338154520,1726317127364,-377.92,0.00043835,120]
[338154521,1726317127374,-500.0,0.00043835,120]
[338154523,1726317127384,-500.0,0.00043835,120]
[338154524,1726317127394,-500.0,0.00043835,120]
[338154525,1726317127403,-500.0,0.00043835,120]
[338154526,1726317127413,-500.0,0.00043835,120]
[338154528,1726317127424,-500.0,0.00043835,120]
[338154529,1726317127435,-500.0,0.00043835,4]
[338154530,1726317127447,-500.0,0.00043835,120]
[338154531,1726317127458,-500.0,0.00043835,120]
[338154533,1726317127469,-1149.64,0.00043835,120]
[338154534,1726317127478,-500.0,0.00043835,120]
[338154535,1726317127488,-500.0,0.00043835,120]
[338154536,1726317127501,-500.0,0.00043835,120]
[338154538,1726317127511,-500.0,0.00043835,120]
[338154539,1726317127522,-500.0,0.00043835,120]
[338154540,1726317127534,-530.87,0.00043835,120]
[338154541,1726317127544,-1041.0,0.00043835,120]
[338154543,1726317127556,-500.0,0.00043835,2]
[338154544,1726317127567,-500.0,0.00043835,120]
[338154545,1726317127576,-1653.14,0.00043835,120]
[338154546,1726317127588,-799.5,0.00043835,120]
[338154548,1726317127598,-917.01,0.00043835,120]
[338154549,1726317127610,-500.0,0.00043835,120]
[338154550,1726317127619,-500.0,0.00043835,2]
[338154551,1726317127629,-500.0,0.00043835,120]
[338154552,1726317127639,-500.0,0.00043835,120]
[338154554,1726317127650,-500.0,0.00043835,120]
[338154555,1726317127662,-500.0,0.00043835,120]
[338154556,1726317127671,-500.0,0.00043835,120]
[338154557,1726317127681,-500.0,0.00043835,120]
[338154558,1726317127691,-456.28774001,0.00043835,120]
[338154560,1726317127702,-577.41,0.00043835,120]
[338154561,1726317127712,-500.0,0.00043835,120]
[338154562,1726317127723,-533.74,0.00043835,120]
[338154563,1726317127734,-500.0,0.00043835,120]
[338154564,1726317127745,-576.23,0.00043835,120]
[338154565,1726317127755,-500.0,0.00043835,120]
[338154566,1726317127765,-500.0,0.00043835,120]
[338154567,1726317127775,-561.88,0.00043835,120]
[338154569,1726317127784,-500.0,0.00043835,120]
[338154570,1726317127794,-500.0,0.00043835,120]
[338154571,1726317127803,-500.0,0.00043835,120]
[338154572,1726317127812,-500.0,0.00043835,120]
[338154573,1726317127822,-199.85242524,0.00043835,120]
[338154575,1726317127831,-500.0,0.00043835,120]
[338154576,1726317127840,-500.0,0.00043835,120]
[338154577,1726317127850,-500.0,0.00043835,120]
[338154578,1726317127859,-500.0,0.00043835,120]
[338154580,1726317127870,-532.28,0.00043835,120]
[338154581,1726317127879,-500.0,0.00043835,120]
[338154582,1726317127889,-500.0,0.00043835,120]
[338154583,1726317127898,-500.0,0.00043835,120]
[338154585,1726317127908,-500.0,0.00043835,2]
[338154586,1726317127917,-550.06,0.00043835,120]
[338154587,1726317127928,-500.0,0.00043835,120]
[338154588,1726317127937,-500.0,0.00043835,120]
[338154589,1726317127947,-896.86,0.00043835,120]
[338154590,1726317127956,-200.0,0.00043835,7]
[338154592,1726317127965,-789.8,0.00043835,120]
[338154593,1726317127980,-500.0,0.00043835,7]
[338154594,1726317127994,-890.28,0.00043835,120]
[338154596,1726317128003,-1056.36,0.00043835,120]
[338154597,1726317128012,-2359.56,0.00043835,120]
[338154598,1726317128022,-500.0,0.00043835,30]
[338154599,1726317128031,-500.0,0.00043835,120]
[338154600,1726317128040,-1929.31,0.00043835,120]
[338154602,1726317128050,-520.24137016,0.00043835,120]
[338154603,1726317128060,-726.74,0.00043835,120]
[338154604,1726317128070,-500.0,0.00043835,120]
[338154605,1726317128080,-500.0,0.00043835,120]
[338154607,1726317128089,-500.0,0.00043835,120]
[338154608,1726317128099,-500.0,0.00043835,120]
[338154609,1726317128110,-500.0,0.00043835,120]
[338154610,1726317128121,-500.0,0.00043835,120]
[338154611,1726317128130,-500.0,0.00043835,120]
[338154613,1726317128140,-500.0,0.00043835,120]
[338154614,1726317128149,-500.0,0.00043835,120]
[338154615,1726317128158,-500.0,0.00043835,120]
[338154616,1726317128168,-500.0,0.00043835,120]
[338154618,1726317128178,-500.0,0.00043835,120]
[338154619,1726317128189,-435.08331983,0.00043835,120]
[338154620,1726317128198,-500.0,0.00043835,120]
[338154621,1726317128208,-500.0,0.00043835,120]
[338154622,1726317128218,-500.0,0.00043835,120]
[338154624,1726317128228,-500.0,0.00043835,120]
[338154625,1726317128238,-500.0,0.00043835,120]
[338154626,1726317128247,-500.0,0.00043835,120]
[338154627,1726317128257,-500.0,0.00043835,120]
[338154629,1726317128266,-500.0,0.00043835,120]
[338154630,1726317128275,-2173.48,0.00043835,120]
[338154631,1726317128286,-652.24,0.00043835,120]
[338154632,1726317128295,-500.0,0.00043835,120]
[338154633,1726317128305,-500.0,0.00043835,120]
[338154634,1726317128315,-500.0,0.00043835,120]
[338154636,1726317128324,-500.0,0.00043835,120]
[338154637,1726317128334,-500.0,0.00043835,120]
[338154638,1726317128344,-500.0,0.00043835,120]
[338154639,1726317128353,-507.99219363,0.00043835,120]
[338154641,1726317128363,-5000.0,0.00043835,120]
[338154642,1726317128373,-1128.37,0.00043835,120]
[338154643,1726317128382,-500.0,0.00043835,120]
[338154644,1726317128392,-500.0,0.00043835,120]
[338154645,1726317128401,-500.0,0.00043835,120]
[338154650,1726317128677,-500.0,0.00043835,120]
[338154651,1726317128687,-500.0,0.00043835,120]
[338154652,1726317128696,-500.0,0.00043835,120]
[338154653,1726317128705,-500.0,0.00043835,120]
[338154654,1726317128713,-500.0,0.00043835,120]
[338154655,1726317128722,-622.27,0.00043835,120]
[338154656,1726317128732,-219.37392126,0.00043835,120]
[338154657,1726317128742,-504.5292517,0.00043835,120]
[338154658,1726317128753,-500.0,0.00043835,120]
[338154659,1726317128763,-450.60396556,0.00043835,120]
[338154660,1726317128775,-500.0,0.00043835,120]
[338154661,1726317128784,-500.0,0.00043835,120]
[338154663,1726317128795,-1381.1,0.00043835,120]
[338154664,1726317128805,-1000.0,0.00043835,90]
[338154665,1726317128814,-500.0,0.00043835,120]
[338154666,1726317128823,-1175.45,0.00043835,120]
[338154667,1726317128833,-224.96285474,0.00043835,120]
[338154669,1726317128843,-500.0,0.00043835,120]
[338154670,1726317128853,-797.26,0.00043835,120]
[338154671,1726317128862,-500.0,0.00043835,120]
[338154672,1726317128873,-500.0,0.00043835,120]
[338154674,1726317128883,-500.0,0.00043835,120]
[338154675,1726317128894,-500.0,0.00043835,120]
[338154676,1726317128905,-1742.51,0.00043835,120]
[338154677,1726317128915,-1566.45,0.00043835,120]
[338154678,1726317128926,-500.0,0.00043835,120]
[338154679,1726317128935,-500.0,0.00043835,120]
[338154680,1726317128945,-1413.51,0.00043835,120]
[338154681,1726317128957,-1000.0,0.00043835,5]
[338154682,1726317128966,-500.0,0.00043835,120]
[338154683,1726317128976,-500.0,0.00043835,120]
[338154684,1726317128985,-641.14,0.00043835,120]
[338154685,1726317128994,-500.0,0.00043835,120]
[338154686,1726317129004,-500.0,0.00043835,120]
[338154687,1726317129014,-600.82,0.00043835,120]
[338154688,1726317129023,-500.0,0.00043835,120]
[338154689,1726317129032,-500.0,0.00043835,120]
[338154690,1726317129042,-500.0,0.00043835,120]
[338154691,1726317129052,-500.0,0.00043835,120]
[338154692,1726317129061,-500.0,0.00043835,2]
[338154693,1726317129071,-500.0,0.00043835,120]
[338154694,1726317129080,-571.34,0.00043835,120]
[338154696,1726317129090,-557.48,0.00043835,120]
[338154697,1726317129099,-500.0,0.00043835,120]
[338154698,1726317129109,-551.56,0.00043835,120]
[338154699,1726317129122,-500.0,0.00043835,2]
[338154700,1726317129131,-2818.65,0.00043835,120]
[338154702,1726317129140,-500.0,0.00043835,120]
[338154703,1726317129149,-500.0,0.00043835,120]
[338154704,1726317129160,-500.0,0.00043835,120]
[338154705,1726317129171,-1739.83,0.00043835,120]
[338154706,1726317129181,-500.0,0.00043835,120]
[338154707,1726317129192,-1012.34,0.00043835,120]
[338154708,1726317129202,-500.0,0.00043835,120]
[338154709,1726317129213,-500.0,0.00043835,120]
[338154710,1726317129224,-541.08,0.00043835,120]
[338154711,1726317129234,-523.39,0.00043835,120]
[338154712,1726317129244,-2375.3,0.00043835,120]
[338154713,1726317129253,-500.0,0.00043835,120]
[338154714,1726317129263,-1029.29,0.00043835,120]
[338154715,1726317129274,-683.89,0.00043835,120]
[338154716,1726317129283,-500.0,0.00043835,120]
[338154717,1726317129293,-411.76857018,0.00043835,120]
[338154718,1726317129303,-500.0,0.00043835,120]
[338154719,1726317129312,-575.14,0.00043835,120]
[338154720,1726317129321,-500.0,0.00043835,120]
[338154721,1726317129330,-1269.28,0.00043835,120]
[338154722,1726317129339,-500.0,0.00043835,120]
[338154724,1726317129348,-388.3022166,0.00043835,120]
[338154725,1726317129357,-500.71985358,0.00043835,120]
[338154726,1726317129366,-631.21,0.00043835,120]
[338154727,1726317129376,-500.0,0.00043835,120]
[338154728,1726317129385,-500.0,0.00043835,120]
[338154729,1726317129395,-655.77,0.00043835,120]
[338154730,1726317129405,-2107.72,0.00043835,120]
[338154732,1726317129415,-500.0,0.00043835,120]
[338154733,1726317129425,-500.0,0.00043835,120]
[338154734,1726317129435,-1476.76,0.00043835,120]
[338154735,1726317129444,-500.0,0.00043835,120]
[338154736,1726317129453,-500.0,0.00043835,120]
[338154737,1726317129463,-500.0,0.00043835,120]
[338154738,1726317129473,-500.0,0.00043835,120]
[338154739,1726317129485,-500.0,0.00043835,120]
[338154740,1726317129494,-500.0,0.00043835,120]
[338154741,1726317129503,-503.6086129,0.00043835,120]
[338154742,1726317129513,-500.0,0.00043835,120]
[338154743,1726317129523,-500.0,0.00043835,120]
[338154744,1726317129533,-500.0,0.00043835,120]
[338154745,1726317129543,-500.0,0.00043835,120]
[338154746,1726317129554,-500.0,0.00043835,120]
[338154747,1726317129566,-500.0,0.00043835,120]
[338154748,1726317129576,-500.0,0.00043835,120]
[338154749,1726317129589,-743.29,0.00043835,120]
[338154750,1726317129601,-500.0,0.00043835,120]
[338154751,1726317129613,-500.0,0.00043835,120]
[338154752,1726317129623,-562.5129184,0.00043835,120]
[338154754,1726317129633,-500.0,0.00043835,120]
[338154755,1726317129646,-500.0,0.00043835,120]
[338154756,1726317129655,-500.0,0.00043835,120]
[338154757,1726317129665,-500.0,0.00043835,120]
[338154758,1726317129676,-500.0,0.00043835,120]
[338154759,1726317129687,-500.0,0.00043835,120]
[338154760,1726317129699,-500.0,0.00043835,120]
[338154761,1726317129710,-576.22151764,0.00043835,120]
[338154762,1726317129719,-500.0,0.00043835,120]
[338154763,1726317129729,-2728.63,0.00043835,120]
[338154764,1726317129742,-500.0,0.00043835,120]
[338154766,1726317129754,-500.0,0.00043835,120]
[338154767,1726317129765,-1246.58,0.00043835,120]
[338154768,1726317129775,-500.0,0.00043835,120]
[338154769,1726317129784,-1110.27,0.00043835,120]
[338154770,1726317129793,-500.0,0.00043835,120]
[338154771,1726317129803,-611.00503924,0.00043835,120]
[338154772,1726317129812,-894.94,0.00043835,120]
[338154773,1726317129821,-500.0,0.00043835,120]
[338154774,1726317129830,-577.81,0.00043835,120]
[338154775,1726317129840,-500.0,0.00043835,120]
[338154776,1726317129849,-500.0,0.00043835,120]
[338154777,1726317129858,-1038.79,0.00043835,120]
[338154779,1726317129868,-500.0,0.00043835,120]
[338154780,1726317129879,-1610.5,0.00043835,120]
[338154781,1726317129891,-500.0,0.00043835,120]
[338154782,1726317129899,-1056.47,0.00043835,120]
[338154783,1726317129909,-1698.47,0.00043835,120]
[338154784,1726317129919,-500.0,0.00043835,120]
[338154785,1726317129930,-1086.8,0.00043835,120]
[338154786,1726317129940,-500.0,0.00043835,120]
[338154787,1726317129949,-1527.28,0.00043835,120]
[338154788,1726317129958,-600.0,0.00043835,3]
[338154789,1726317129968,-500.0,0.00043835,120]
[338154790,1726317129977,-500.0,0.00043835,120]
[338154791,1726317129987,-429.98730619,0.00043835,120]
[338154792,1726317129997,-500.0,0.00043835,120]
[338154793,1726317130006,-500.0,0.00043835,120]
[338154794,1726317130015,-500.0,0.00043835,120]
[338154795,1726317130024,-715.96,0.00043835,120]
[338154796,1726317130033,-500.0,0.00043835,120]
[338154797,1726317130043,-500.0,0.00043835,120]
[338154799,1726317130052,-500.0,0.00043835,120]
[338154800,1726317130061,-500.0,0.00043835,120]
[338154801,1726317130070,-512.85,0.00043835,20]
[338154802,1726317130080,-500.0,0.00043835,120]
[338154803,1726317130089,-500.0,0.00043835,120]
[338154804,1726317130098,-578.68,0.00043835,120]
[338154806,1726317130108,-500.0,0.00043835,120]
[338154807,1726317130120,-1478.19,0.00043835,120]
[338154808,1726317130130,-500.0,0.00043835,120]
[338154809,1726317130139,-1396.88,0.00043835,30]
[338154810,1726317130148,-500.0,0.00043835,120]
[338154812,1726317130158,-500.0,0.00043835,120]
[338154813,1726317130167,-500.0,0.00043835,120]
[338154814,1726317130178,-1573.42,0.00043835,2]
[338154815,1726317130187,-500.0,0.00043835,120]
[338154816,1726317130196,-500.0,0.00043835,120]
[338154817,1726317130206,-348.67838176,0.00043835,120]
[338154818,1726317130216,-1328.63,0.00043835,120]
[338154819,1726317130225,-500.0,0.00043835,120]
[338154820,1726317130235,-1704.84,0.00043835,120]
[338154821,1726317130244,-854.78,0.00043835,120]
[338154822,1726317130253,-1469.83,0.00043835,120]
[338154823,1726317130263,-564.26,0.00043835,120]
[338154824,1726317130272,-500.0,0.00043835,120]
[338154825,1726317130281,-2527.76,0.00043835,120]
[338154826,1726317130290,-1000.0,0.00043835,120]
[338154827,1726317130299,-500.0,0.00043835,120]
[338154828,1726317130309,-500.0,0.00043835,120]
[338154829,1726317130318,-500.0,0.00043835,120]
[338154830,1726317130328,-500.0,0.00043835,120]
[338154831,1726317130338,-500.0,0.00043835,120]
[338154833,1726317130347,-2896.84,0.00043835,120]
[338154834,1726317130356,-500.0,0.00043835,120]
[338154835,1726317130365,-500.0,0.00043835,120]
[338154836,1726317130375,-500.0,0.00043835,120]
[338154837,1726317130384,-9207.17,0.00043835,120]
[338154838,1726317130393,-1689.16,0.00043835,120]
[338154839,1726317130403,-500.0,0.00043835,120]
[338154840,1726317130412,-4033.34,0.00043835,120]
[338154841,1726317130422,-500.0,0.00043835,120]
[338154843,1726317130432,-664.18,0.00043835,120]
[338154844,1726317130441,-3292.63,0.00043835,120]
[338154845,1726317130450,-490.79038421,0.00043835,120]
[338154846,1726317130459,-500.0,0.00043835,120]
[338154847,1726317130468,-1069.97,0.00043835,120]
[338154848,1726317130477,-500.0,0.00043835,120]
[338154850,1726317130486,-500.0,0.00043835,120]
[338154851,1726317130495,-151.55537684,0.00043835,120]
[338154852,1726317130504,-3516.83,0.00043835,120]
[338154853,1726317130513,-500.0,0.00043835,120]